[Event "Titled Tuesday Blitz July 11 Early 2023"]
[White "Tokman, Ariel"]
[Black "GAO"]
[WhiteFideId "117420"]
[WhiteElo "2525"]
[BlackElo "2382"]
[Result "1-0"]
[Round "9"]
[TimeControl "180+2"]
[Date "2023.07.11"]
[WhiteClock "0:00:10"]
[BlackClock "0:00:04"]
[Board "111"]

1. d4 {[%clk 0:02:52]}  Nf6 {[%clk 0:02:56]} 2. Nf3 {[%clk 0:02:45]}  e6 {[%clk 0:02:53]} 3. c4 {[%clk 0:02:43]}  d5 {[%clk 0:02:50]} 4. Nc3 {[%clk 0:02:40]}  Bb4 {[%clk 0:02:49]} 5. e3 {[%clk 0:02:39]}  O-O {[%clk 0:02:48]} 6. Bd2 {[%clk 0:02:38]}  a5 {[%clk 0:02:36]} 7. Rc1 {[%clk 0:02:31]}  b6 {[%clk 0:02:28]} 8. cxd5 {[%clk 0:02:30]}  exd5 {[%clk 0:02:26]} 9. Bd3 {[%clk 0:02:30]}  Ba6 {[%clk 0:02:23]} 10. Bxa6 {[%clk 0:02:29]}  Nxa6 {[%clk 0:02:24]} 11. O-O {[%clk 0:02:30]}  c6 {[%clk 0:02:14]} 12. Ne5 {[%clk 0:02:24]}  Rc8 {[%clk 0:02:13]} 13. Qe2 {[%clk 0:02:17]}  Nb8 {[%clk 0:02:10]} 14. Qd3 {[%clk 0:01:53]}  Bd6 {[%clk 0:02:00]} 15. Ne2 {[%clk 0:01:49]}  Re8 {[%clk 0:01:57]} 16. Nf3 {[%clk 0:01:36]}  Ne4 {[%clk 0:01:56]} 17. Ng3 {[%clk 0:01:36]}  Nd7 {[%clk 0:01:48]} 18. Rc2 {[%clk 0:01:29]}  c5 {[%clk 0:01:38]} 19. b3 {[%clk 0:01:18]}  Qf6 {[%clk 0:01:34]} 20. Rfc1 {[%clk 0:01:12]}  Qh6 {[%clk 0:01:11]} 21. Be1 {[%clk 0:01:06]}  Ndf6 {[%clk 0:01:10]} 22. Nf5 {[%clk 0:01:01]}  Qh5 {[%clk 0:00:55]} 23. Nxd6 {[%clk 0:00:58]}  Nxd6 {[%clk 0:00:55]} 24. dxc5 {[%clk 0:00:57]}  bxc5 {[%clk 0:00:27]} 25. Rxc5 {[%clk 0:00:57]}  Rxc5 {[%clk 0:00:26]} 26. Rxc5 {[%clk 0:00:47]}  Nde4 {[%clk 0:00:26]} 27. Rc6 {[%clk 0:00:41]}  Ng4 {[%clk 0:00:20]} 28. h3 {[%clk 0:00:38]}  Ne5 {[%clk 0:00:20]} 29. Nxe5 {[%clk 0:00:37]}  Qxe5 {[%clk 0:00:21]} 30. Qc2 {[%clk 0:00:29]}  Qa1 {[%clk 0:00:20]} 31. Kf1 {[%clk 0:00:25]}  h6 {[%clk 0:00:17]} 32. Rc8 {[%clk 0:00:21]}  Rxc8 {[%clk 0:00:16]} 33. Qxc8+ {[%clk 0:00:22]}  Kh7 {[%clk 0:00:17]} 34. Qc2 {[%clk 0:00:23]}  Qe5 {[%clk 0:00:16]} 35. Kg1 {[%clk 0:00:20]}  Qa1 {[%clk 0:00:15]} 36. Kf1 {[%clk 0:00:20]}  Qe5 {[%clk 0:00:15]} 37. f3 {[%clk 0:00:20]}  Qf5 {[%clk 0:00:12]} 38. Kg1 {[%clk 0:00:13]}  Nd6 {[%clk 0:00:12]} 39. Qxf5+ {[%clk 0:00:12]}  Nxf5 {[%clk 0:00:13]} 40. Kf2 {[%clk 0:00:13]}  Kg6 {[%clk 0:00:13]} 41. Bxa5 {[%clk 0:00:13]}  Kf6 {[%clk 0:00:12]} 42. Bc3+ {[%clk 0:00:13]}  Ke6 {[%clk 0:00:13]} 43. g4 {[%clk 0:00:13]}  Ne7 {[%clk 0:00:10]} 44. Bxg7 {[%clk 0:00:13]}  f6 {[%clk 0:00:11]} 45. Bxh6 {[%clk 0:00:12]}  Ng6 {[%clk 0:00:11]} 46. Bf4 {[%clk 0:00:12]}  d4 {[%clk 0:00:09]} 47. Ke2 {[%clk 0:00:12]}  Kd5 {[%clk 0:00:08]} 48. e4+ {[%clk 0:00:11]}  Kc5 {[%clk 0:00:07]} 49. Bd2 {[%clk 0:00:11]}  Ne5 {[%clk 0:00:07]} 50. h4 {[%clk 0:00:10]}  Nc6 {[%clk 0:00:05]} 51. h5 {[%clk 0:00:10]}  Ne5 {[%clk 0:00:05]} 52. h6 {[%clk 0:00:10]}  Ng6 {[%clk 0:00:05]} 53. h7 {[%clk 0:00:10]}  Kd6 {[%clk 0:00:05]} 54. Bb4+ {[%clk 0:00:09]}  Ke5 {[%clk 0:00:05]} 55. a4 {[%clk 0:00:10]}  Kf4 {[%clk 0:00:04]} 56. a5 {[%clk 0:00:10]}  Ne5 {[%clk 0:00:04]} 57. h8=Q {[%clk 0:00:10]}  d3+ {[%clk 0:00:05]} 58. Kd2 {[%clk 0:00:09]}  Nxf3+ {[%clk 0:00:04]} 59. Kxd3 {[%clk 0:00:10]} 1-0


[Site "https://www.chess.com"]

[Event "Titled Tuesday Blitz July 11 Early 2023"]
[White "MateoReyes"]
[Black "Bogaudinov, Rushan"]
[BlackFideId "4129288"]
[WhiteElo "2477"]
[BlackElo "2351"]
[Result "1-0"]
[Round "9"]
[TimeControl "180+2"]
[Date "2023.07.11"]
[WhiteClock "0:00:50"]
[BlackClock "0:00:01"]
[Board "115"]

1. Nf3 {[%clk 0:02:59]}  d5 {[%clk 0:02:41]} 2. d4 {[%clk 0:02:58]}  Nf6 {[%clk 0:02:41]} 3. c4 {[%clk 0:02:58]}  e6 {[%clk 0:02:41]} 4. Nc3 {[%clk 0:02:57]}  c5 {[%clk 0:02:41]} 5. cxd5 {[%clk 0:02:54]}  Nxd5 {[%clk 0:02:40]} 6. e4 {[%clk 0:02:53]}  Nxc3 {[%clk 0:02:40]} 7. bxc3 {[%clk 0:02:53]}  Be7 {[%clk 0:02:37]} 8. Bc4 {[%clk 0:02:49]}  O-O {[%clk 0:02:36]} 9. O-O {[%clk 0:02:49]}  cxd4 {[%clk 0:02:34]} 10. cxd4 {[%clk 0:02:48]}  Nc6 {[%clk 0:02:33]} 11. Bb2 {[%clk 0:02:47]}  Na5 {[%clk 0:02:32]} 12. Bd3 {[%clk 0:02:46]}  Bd7 {[%clk 0:02:18]} 13. Re1 {[%clk 0:02:43]}  Rc8 {[%clk 0:02:18]} 14. Qe2 {[%clk 0:02:41]}  a6 {[%clk 0:02:12]} 15. Rad1 {[%clk 0:02:37]}  Ba4 {[%clk 0:02:10]} 16. Rc1 {[%clk 0:02:35]}  Qb6 {[%clk 0:01:57]} 17. Ne5 {[%clk 0:02:29]}  Nc6 {[%clk 0:01:45]} 18. Nc4 {[%clk 0:02:22]}  Qa7 {[%clk 0:01:40]} 19. d5 {[%clk 0:02:21]}  Nb4 {[%clk 0:01:24]} 20. Bb1 {[%clk 0:02:06]}  Bg5 {[%clk 0:01:15]} 21. Qg4 {[%clk 0:02:03]}  f6 {[%clk 0:00:49]} 22. Qxe6+ {[%clk 0:01:52]}  Kh8 {[%clk 0:00:49]} 23. Rc3 {[%clk 0:01:48]}  Rce8 {[%clk 0:00:40]} 24. Qg4 {[%clk 0:01:46]}  Nxd5 {[%clk 0:00:35]} 25. Rh3 {[%clk 0:01:41]}  Nf4 {[%clk 0:00:33]} 26. Rg3 {[%clk 0:01:32]}  Ng6 {[%clk 0:00:25]} 27. Nd6 {[%clk 0:01:27]}  Rd8 {[%clk 0:00:21]} 28. e5 {[%clk 0:01:23]}  Qb8 {[%clk 0:00:13]} 29. Qxa4 {[%clk 0:01:12]}  Nxe5 {[%clk 0:00:09]} 30. Qe4 {[%clk 0:01:06]}  Ng6 {[%clk 0:00:07]} 31. Nf5 {[%clk 0:01:00]}  Bf4 {[%clk 0:00:06]} 32. Rh3 {[%clk 0:00:58]}  Rfe8 {[%clk 0:00:06]} 33. Rxh7+ {[%clk 0:00:53]}  Kxh7 {[%clk 0:00:06]} 34. Ne7 {[%clk 0:00:53]}  Rxe7 {[%clk 0:00:05]} 35. Qxg6+ {[%clk 0:00:53]}  Kg8 {[%clk 0:00:05]} 36. Qh7+ {[%clk 0:00:51]}  Kf7 {[%clk 0:00:02]} 37. Bg6+ {[%clk 0:00:50]}  Kf8 {[%clk 0:00:01]} 38. Qh8# {[%clk 0:00:50]} 1-0


[Site "https://www.chess.com"]

[Event "Titled Tuesday Blitz July 11 Early 2023"]
[White "Rodriguez Fontecha, Marcos"]
[Black "Wernberg, Hugo"]
[WhiteFideId "2256576"]
[BlackFideId "1737511"]
[WhiteElo "2448"]
[BlackElo "2332"]
[Result "0-1"]
[Round "9"]
[TimeControl "180+2"]
[Date "2023.07.11"]
[WhiteClock "0:00:04"]
[BlackClock "0:00:07"]
[Board "116"]

1. e4 {[%clk 0:03:00]}  e5 {[%clk 0:02:59]} 2. Nf3 {[%clk 0:02:56]}  Nc6 {[%clk 0:02:59]} 3. d4 {[%clk 0:02:56]}  exd4 {[%clk 0:02:59]} 4. Bc4 {[%clk 0:02:57]}  Bc5 {[%clk 0:02:58]} 5. Ng5 {[%clk 0:02:57]}  Nh6 {[%clk 0:02:58]} 6. Nxf7 {[%clk 0:02:57]}  Nxf7 {[%clk 0:02:59]} 7. Bxf7+ {[%clk 0:02:58]}  Kxf7 {[%clk 0:03:00]} 8. Qh5+ {[%clk 0:02:58]}  g6 {[%clk 0:02:52]} 9. Qxc5 {[%clk 0:02:58]}  d5 {[%clk 0:02:51]} 10. e5 {[%clk 0:02:40]}  Nxe5 {[%clk 0:02:07]} 11. Qxd4 {[%clk 0:02:38]}  Nc6 {[%clk 0:02:05]} 12. Qf4+ {[%clk 0:02:22]}  Kg7 {[%clk 0:01:51]} 13. O-O {[%clk 0:02:17]}  Rf8 {[%clk 0:01:50]} 14. Qg3 {[%clk 0:02:08]}  Bf5 {[%clk 0:01:41]} 15. b3 {[%clk 0:02:01]}  d4 {[%clk 0:01:26]} 16. Bb2 {[%clk 0:02:00]}  Bxc2 {[%clk 0:01:24]} 17. Nd2 {[%clk 0:01:55]}  Kg8 {[%clk 0:00:43]} 18. Rfe1 {[%clk 0:01:45]}  Qd6 {[%clk 0:00:36]} 19. Qh4 {[%clk 0:01:33]}  Qf4 {[%clk 0:00:29]} 20. Qxf4 {[%clk 0:01:17]}  Rxf4 {[%clk 0:00:30]} 21. Rac1 {[%clk 0:01:09]}  d3 {[%clk 0:00:19]} 22. f3 {[%clk 0:01:03]}  Rff8 {[%clk 0:00:14]} 23. Kf2 {[%clk 0:00:58]}  Rae8 {[%clk 0:00:13]} 24. Ne4 {[%clk 0:00:58]}  Rxe4 {[%clk 0:00:06]} 25. Rxe4 {[%clk 0:00:53]}  d2 {[%clk 0:00:07]} 26. Re2 {[%clk 0:00:31]}  dxc1=Q {[%clk 0:00:07]} 27. Bxc1 {[%clk 0:00:30]}  Bf5 {[%clk 0:00:07]} 28. Bb2 {[%clk 0:00:29]}  Kf7 {[%clk 0:00:07]} 29. g4 {[%clk 0:00:29]}  Bc8 {[%clk 0:00:07]} 30. Kg3 {[%clk 0:00:28]}  Re8 {[%clk 0:00:07]} 31. Rc2 {[%clk 0:00:28]}  Re7 {[%clk 0:00:07]} 32. h4 {[%clk 0:00:28]}  Nb4 {[%clk 0:00:06]} 33. Rc4 {[%clk 0:00:24]}  Nd5 {[%clk 0:00:06]} 34. Rd4 {[%clk 0:00:20]}  c6 {[%clk 0:00:07]} 35. Rd2 {[%clk 0:00:19]}  b6 {[%clk 0:00:03]} 36. Rh2 {[%clk 0:00:17]}  Ba6 {[%clk 0:00:03]} 37. h5 {[%clk 0:00:17]}  g5 {[%clk 0:00:04]} 38. h6 {[%clk 0:00:16]}  Re2 {[%clk 0:00:03]} 39. Rxe2 {[%clk 0:00:13]}  Bxe2 {[%clk 0:00:04]} 40. Bc1 {[%clk 0:00:13]}  Kg6 {[%clk 0:00:03]} 41. Kf2 {[%clk 0:00:12]}  Bd3 {[%clk 0:00:03]} 42. Ke1 {[%clk 0:00:11]}  Kxh6 {[%clk 0:00:04]} 43. Kd2 {[%clk 0:00:12]}  Bb1 {[%clk 0:00:04]} 44. a3 {[%clk 0:00:11]}  Kg6 {[%clk 0:00:05]} 45. Ke2 {[%clk 0:00:09]}  Bc2 {[%clk 0:00:04]} 46. Kd2 {[%clk 0:00:09]}  Bxb3 {[%clk 0:00:05]} 47. Bb2 {[%clk 0:00:09]}  Ba4 {[%clk 0:00:06]} 48. Ke2 {[%clk 0:00:09]}  Bb5+ {[%clk 0:00:06]} 49. Kf2 {[%clk 0:00:09]}  a5 {[%clk 0:00:06]} 50. Bc1 {[%clk 0:00:09]}  Bc4 {[%clk 0:00:06]} 51. Kg3 {[%clk 0:00:07]}  b5 {[%clk 0:00:07]} 52. Kf2 {[%clk 0:00:07]}  b4 {[%clk 0:00:07]} 53. axb4 {[%clk 0:00:07]}  axb4 {[%clk 0:00:07]} 54. Ke1 {[%clk 0:00:08]}  c5 {[%clk 0:00:07]} 55. Kd2 {[%clk 0:00:08]}  Bb5 {[%clk 0:00:08]} 56. Bb2 {[%clk 0:00:07]}  c4 {[%clk 0:00:08]} 57. Bd4 {[%clk 0:00:07]}  c3+ {[%clk 0:00:09]} 58. Kc2 {[%clk 0:00:08]}  Bc4 {[%clk 0:00:09]} 59. Be5 {[%clk 0:00:06]}  b3+ {[%clk 0:00:10]} 60. Kc1 {[%clk 0:00:04]}  Bd3 {[%clk 0:00:07]} 0-1


[Site "https://www.chess.com"]

[Event "Titled Tuesday Blitz July 11 Early 2023"]
[White "Pinheiro, Iung Alicio de O."]
[Black "Fernandez, Michael"]
[WhiteFideId "2104350"]
[BlackFideId "5803560"]
[WhiteElo "2558"]
[BlackElo "2345"]
[Result "1-0"]
[Round "9"]
[TimeControl "180+2"]
[Date "2023.07.11"]
[WhiteClock "0:00:55"]
[BlackClock "0:00:03"]
[Board "120"]

1. d4 {[%clk 0:02:59]}  b5 {[%clk 0:02:59]} 2. e4 {[%clk 0:02:56]}  Bb7 {[%clk 0:02:59]} 3. Bxb5 {[%clk 0:02:57]}  Bxe4 {[%clk 0:02:59]} 4. Nf3 {[%clk 0:02:57]}  Nf6 {[%clk 0:02:59]} 5. O-O {[%clk 0:02:57]}  e6 {[%clk 0:02:58]} 6. Re1 {[%clk 0:02:57]}  Be7 {[%clk 0:02:53]} 7. c4 {[%clk 0:02:56]}  O-O {[%clk 0:02:52]} 8. Nc3 {[%clk 0:02:57]}  Bb7 {[%clk 0:02:52]} 9. d5 {[%clk 0:02:47]}  h6 {[%clk 0:02:33]} 10. Ba4 {[%clk 0:02:43]}  exd5 {[%clk 0:02:28]} 11. cxd5 {[%clk 0:02:40]}  Bc5 {[%clk 0:02:27]} 12. Bf4 {[%clk 0:01:58]}  d6 {[%clk 0:02:27]} 13. h3 {[%clk 0:01:55]}  Nbd7 {[%clk 0:02:27]} 14. Qd2 {[%clk 0:01:55]}  Nb6 {[%clk 0:02:01]} 15. Bb3 {[%clk 0:01:37]}  Qd7 {[%clk 0:01:41]} 16. Rac1 {[%clk 0:01:17]}  Rfe8 {[%clk 0:01:26]} 17. Rxe8+ {[%clk 0:01:05]}  Rxe8 {[%clk 0:01:25]} 18. Bxh6 {[%clk 0:01:06]}  Nfxd5 {[%clk 0:00:27]} 19. Nxd5 {[%clk 0:00:59]}  Nxd5 {[%clk 0:00:16]} 20. Qg5 {[%clk 0:00:55]}  f6 {[%clk 0:00:03]} 21. Bxd5+ {[%clk 0:00:55]} 1-0


[Site "https://www.chess.com"]

[Event "Titled Tuesday Blitz July 11 Early 2023"]
[White "Fajdetic, Hrvoje"]
[Black "Papayan, Oleg"]
[WhiteFideId "14501945"]
[BlackFideId "4193911"]
[WhiteElo "2327"]
[BlackElo "2518"]
[Result "0-1"]
[Round "9"]
[TimeControl "180+2"]
[Date "2023.07.11"]
[WhiteClock "0:00:08"]
[BlackClock "0:01:15"]
[Board "123"]

1. f4 {[%clk 0:02:49]}  g6 {[%clk 0:02:56]} 2. e4 {[%clk 0:02:35]}  d5 {[%clk 0:02:56]} 3. e5 {[%clk 0:02:33]}  c5 {[%clk 0:02:55]} 4. Nf3 {[%clk 0:02:33]}  Nc6 {[%clk 0:02:55]} 5. Bb5 {[%clk 0:02:32]}  d4 {[%clk 0:02:54]} 6. Bxc6+ {[%clk 0:02:32]}  bxc6 {[%clk 0:02:54]} 7. d3 {[%clk 0:02:30]}  h5 {[%clk 0:02:51]} 8. Nbd2 {[%clk 0:02:03]}  Bg4 {[%clk 0:02:50]} 9. h3 {[%clk 0:02:00]}  Bxf3 {[%clk 0:02:34]} 10. Qxf3 {[%clk 0:02:01]}  Qd5 {[%clk 0:02:35]} 11. Ne4 {[%clk 0:01:56]}  Nh6 {[%clk 0:02:31]} 12. g4 {[%clk 0:01:55]}  O-O-O {[%clk 0:02:22]} 13. b3 {[%clk 0:01:41]}  f5 {[%clk 0:02:09]} 14. exf6 {[%clk 0:01:31]}  exf6 {[%clk 0:02:10]} 15. Ba3 {[%clk 0:01:09]}  f5 {[%clk 0:02:07]} 16. Nd2 {[%clk 0:01:01]}  fxg4 {[%clk 0:01:55]} 17. Qxd5 {[%clk 0:00:55]}  cxd5 {[%clk 0:01:48]} 18. O-O-O {[%clk 0:00:42]}  gxh3 {[%clk 0:01:45]} 19. Rxh3 {[%clk 0:00:34]}  Ng4 {[%clk 0:01:45]} 20. Rf1 {[%clk 0:00:31]}  Bd6 {[%clk 0:01:40]} 21. f5 {[%clk 0:00:17]}  Ne3 {[%clk 0:01:40]} 22. fxg6 {[%clk 0:00:13]}  Nxf1 {[%clk 0:01:39]} 23. Nxf1 {[%clk 0:00:14]}  Rdg8 {[%clk 0:01:35]} 24. Ng3 {[%clk 0:00:12]}  Rxg6 {[%clk 0:01:29]} 25. Rxh5 {[%clk 0:00:12]}  Rxh5 {[%clk 0:01:24]} 26. Nxh5 {[%clk 0:00:13]}  Be5 {[%clk 0:01:18]} 27. Bxc5 {[%clk 0:00:08]}  Rh6 {[%clk 0:01:15]} 0-1


[Site "https://www.chess.com"]

[Event "Titled Tuesday Blitz July 11 Early 2023"]
[White "Mikhaylova, Irina"]
[Black "Namitbir Singh Walia"]
[WhiteFideId "4109040"]
[BlackFideId "35071068"]
[WhiteElo "2286"]
[BlackElo "2467"]
[Result "0-1"]
[Round "9"]
[TimeControl "180+2"]
[Date "2023.07.11"]
[WhiteClock "0:01:07"]
[BlackClock "0:01:51"]
[Board "127"]

1. Nf3 {[%clk 0:03:00]}  Nf6 {[%clk 0:02:55]} 2. c3 {[%clk 0:03:00]}  d5 {[%clk 0:02:55]} 3. d4 {[%clk 0:03:00]}  Bf5 {[%clk 0:02:53]} 4. Bf4 {[%clk 0:03:00]}  c6 {[%clk 0:02:51]} 5. e3 {[%clk 0:03:01]}  e6 {[%clk 0:02:51]} 6. Bd3 {[%clk 0:03:01]}  Bg6 {[%clk 0:02:49]} 7. Qe2 {[%clk 0:02:58]}  Ne4 {[%clk 0:02:48]} 8. O-O {[%clk 0:02:54]}  Nd7 {[%clk 0:02:48]} 9. Nfd2 {[%clk 0:02:52]}  Be7 {[%clk 0:02:31]} 10. f3 {[%clk 0:02:50]}  Nxd2 {[%clk 0:02:31]} 11. Nxd2 {[%clk 0:02:49]}  O-O {[%clk 0:02:25]} 12. e4 {[%clk 0:02:45]}  Qb6 {[%clk 0:02:25]} 13. Rab1 {[%clk 0:02:25]}  e5 {[%clk 0:02:24]} 14. Be3 {[%clk 0:02:24]}  exd4 {[%clk 0:02:23]} 15. Bxd4 {[%clk 0:02:24]}  Bc5 {[%clk 0:02:22]} 16. Bxc5 {[%clk 0:02:23]}  Nxc5 {[%clk 0:02:22]} 17. Kh1 {[%clk 0:02:11]}  Nxd3 {[%clk 0:02:01]} 18. Qxd3 {[%clk 0:02:10]}  Rad8 {[%clk 0:02:01]} 19. Qe2 {[%clk 0:02:02]}  Rfe8 {[%clk 0:02:01]} 20. b3 {[%clk 0:01:28]}  Qa5 {[%clk 0:01:58]} 21. c4 {[%clk 0:01:23]}  dxe4 {[%clk 0:01:52]} 22. Nxe4 {[%clk 0:01:07]}  f5 {[%clk 0:01:51]} 0-1


[Site "https://www.chess.com"]

[Event "Titled Tuesday Blitz July 11 Early 2023"]
[White "rionelG"]
[Black "Gaal, Zsoka"]
[BlackFideId "777765"]
[WhiteElo "2262"]
[BlackElo "2406"]
[Result "0-1"]
[Round "9"]
[TimeControl "180+2"]
[Date "2023.07.11"]
[WhiteClock "0:00:00"]
[BlackClock "0:00:05"]
[Board "130"]

1. e4 {[%clk 0:01:29]}  c6 {[%clk 0:01:30]} 2. d4 {[%clk 0:01:28]}  d5 {[%clk 0:01:29]} 3. exd5 {[%clk 0:01:28]}  cxd5 {[%clk 0:01:29]} 4. c3 {[%clk 0:01:28]}  g6 {[%clk 0:01:29]} 5. Nf3 {[%clk 0:01:27]}  Bg7 {[%clk 0:01:30]} 6. h4 {[%clk 0:01:27]}  Bg4 {[%clk 0:01:28]} 7. Be2 {[%clk 0:01:25]}  Nc6 {[%clk 0:01:28]} 8. Nbd2 {[%clk 0:01:20]}  e6 {[%clk 0:01:28]} 9. Nf1 {[%clk 0:01:19]}  Nge7 {[%clk 0:01:27]} 10. Ne3 {[%clk 0:01:19]}  Bxf3 {[%clk 0:01:22]} 11. Bxf3 {[%clk 0:01:20]}  h5 {[%clk 0:01:20]} 12. g4 {[%clk 0:01:17]}  hxg4 {[%clk 0:01:20]} 13. Nxg4 {[%clk 0:01:17]}  Nf5 {[%clk 0:01:20]} 14. Bg5 {[%clk 0:00:56]}  f6 {[%clk 0:01:21]} 15. Bf4 {[%clk 0:00:54]}  Nxh4 {[%clk 0:01:19]} 16. Qe2 {[%clk 0:00:51]}  Nxf3+ {[%clk 0:01:18]} 17. Qxf3 {[%clk 0:00:52]}  Rxh1+ {[%clk 0:01:19]} 18. Qxh1 {[%clk 0:00:51]}  Qe7 {[%clk 0:01:04]} 19. Qh7 {[%clk 0:00:45]}  O-O-O {[%clk 0:01:03]} 20. Qxg6 {[%clk 0:00:44]}  e5 {[%clk 0:00:57]} 21. dxe5 {[%clk 0:00:42]}  fxe5 {[%clk 0:00:58]} 22. Bg5 {[%clk 0:00:40]}  Rd6 {[%clk 0:00:46]} 23. Qf5+ {[%clk 0:00:33]}  Qd7 {[%clk 0:00:46]} 24. Qxd7+ {[%clk 0:00:32]}  Kxd7 {[%clk 0:00:44]} 25. O-O-O {[%clk 0:00:28]}  Ke6 {[%clk 0:00:44]} 26. f4 {[%clk 0:00:26]}  Rd7 {[%clk 0:00:36]} 27. fxe5 {[%clk 0:00:24]}  Kf5 {[%clk 0:00:35]} 28. Nf6 {[%clk 0:00:20]}  Rf7 {[%clk 0:00:27]} 29. Rg1 {[%clk 0:00:16]}  Nxe5 {[%clk 0:00:25]} 30. Nxd5 {[%clk 0:00:15]}  Nf3 {[%clk 0:00:23]} 31. Rg2 {[%clk 0:00:01]}  Nxg5 {[%clk 0:00:23]} 32. c4 {[%clk 0:00:01]}  Bh6 {[%clk 0:00:22]} 33. Kc2 {[%clk 0:00:01]}  Ne4 {[%clk 0:00:20]} 34. b4 {[%clk 0:00:01]}  Ke5 {[%clk 0:00:14]} 35. a4 {[%clk 0:00:01]}  Nd6 {[%clk 0:00:12]} 36. Kb3 {[%clk 0:00:01]}  Rf3+ {[%clk 0:00:12]} 37. Nc3 {[%clk 0:00:01]}  Be3 {[%clk 0:00:11]} 38. Re2 {[%clk 0:00:01]}  Kd4 {[%clk 0:00:10]} 39. Nb5+ {[%clk 0:00:01]}  Nxb5 {[%clk 0:00:10]} 40. axb5 {[%clk 0:00:02]}  Bd2+ {[%clk 0:00:09]} 41. Ka4 {[%clk 0:00:02]}  Kc3 {[%clk 0:00:08]} 42. c5 {[%clk 0:00:01]}  Rf4 {[%clk 0:00:07]} 43. c6 {[%clk 0:00:01]}  Rxb4+ {[%clk 0:00:07]} 44. Ka5 {[%clk 0:00:01]}  bxc6 {[%clk 0:00:05]} 45. bxc6 {[%clk 0:00:00]}  Rc4 {[%clk 0:00:05]} 0-1


[Site "https://www.chess.com"]

[Event "Titled Tuesday Blitz July 11 Early 2023"]
[White "Fule, Simon"]
[Black "Kiselev, Pavel"]
[WhiteFideId "787515"]
[BlackFideId "4191102"]
[WhiteElo "2405"]
[BlackElo "2257"]
[Result "1-0"]
[Round "9"]
[TimeControl "180+2"]
[Date "2023.07.11"]
[WhiteClock "0:00:03"]
[BlackClock "0:00:04"]
[Board "131"]

1. e4 {[%clk 0:03:00]}  c5 {[%clk 0:02:56]} 2. Nf3 {[%clk 0:03:00]}  Nc6 {[%clk 0:02:55]} 3. d4 {[%clk 0:03:01]}  cxd4 {[%clk 0:02:55]} 4. Nxd4 {[%clk 0:03:01]}  g6 {[%clk 0:02:54]} 5. c4 {[%clk 0:03:01]}  Bg7 {[%clk 0:02:48]} 6. Be3 {[%clk 0:03:00]}  d6 {[%clk 0:02:48]} 7. Nc3 {[%clk 0:02:56]}  Nf6 {[%clk 0:02:48]} 8. Be2 {[%clk 0:02:53]}  O-O {[%clk 0:02:47]} 9. O-O {[%clk 0:02:49]}  Bd7 {[%clk 0:02:48]} 10. Nc2 {[%clk 0:02:45]}  a6 {[%clk 0:02:48]} 11. f3 {[%clk 0:02:39]}  Rc8 {[%clk 0:02:46]} 12. Qd2 {[%clk 0:02:37]}  Ne5 {[%clk 0:02:46]} 13. b3 {[%clk 0:02:34]}  Re8 {[%clk 0:02:45]} 14. Rac1 {[%clk 0:02:32]}  Qa5 {[%clk 0:02:43]} 15. Na3 {[%clk 0:02:16]}  Nc6 {[%clk 0:01:52]} 16. Nab1 {[%clk 0:02:12]}  Ne5 {[%clk 0:01:46]} 17. Rfd1 {[%clk 0:02:09]}  Ra8 {[%clk 0:01:07]} 18. Bf1 {[%clk 0:01:59]}  b5 {[%clk 0:01:04]} 19. cxb5 {[%clk 0:01:23]}  axb5 {[%clk 0:01:04]} 20. Rc2 {[%clk 0:00:58]}  b4 {[%clk 0:00:58]} 21. Ne2 {[%clk 0:00:51]}  Bb5 {[%clk 0:00:45]} 22. Nd4 {[%clk 0:00:46]}  Bxf1 {[%clk 0:00:45]} 23. Rxf1 {[%clk 0:00:47]}  Rec8 {[%clk 0:00:37]} 24. Rfc1 {[%clk 0:00:44]}  Rxc2 {[%clk 0:00:34]} 25. Rxc2 {[%clk 0:00:45]}  Nfd7 {[%clk 0:00:32]} 26. Qe2 {[%clk 0:00:34]}  Nc5 {[%clk 0:00:31]} 27. Nd2 {[%clk 0:00:33]}  Ned3 {[%clk 0:00:29]} 28. Nc4 {[%clk 0:00:31]}  Qd8 {[%clk 0:00:28]} 29. g3 {[%clk 0:00:26]}  Qb8 {[%clk 0:00:18]} 30. Rd2 {[%clk 0:00:17]}  Ne5 {[%clk 0:00:19]} 31. f4 {[%clk 0:00:16]}  Nxc4 {[%clk 0:00:19]} 32. Qxc4 {[%clk 0:00:12]}  Ra3 {[%clk 0:00:19]} 33. Nc6 {[%clk 0:00:11]}  Qb7 {[%clk 0:00:19]} 34. Nxb4 {[%clk 0:00:11]}  Qxe4 {[%clk 0:00:15]} 35. Qxe4 {[%clk 0:00:11]}  Nxe4 {[%clk 0:00:16]} 36. Rc2 {[%clk 0:00:11]}  Nc3 {[%clk 0:00:15]} 37. Bd2 {[%clk 0:00:10]}  Ne4 {[%clk 0:00:15]} 38. Be1 {[%clk 0:00:07]}  h6 {[%clk 0:00:14]} 39. Kg2 {[%clk 0:00:07]}  Nc5 {[%clk 0:00:14]} 40. Bf2 {[%clk 0:00:06]}  Ne4 {[%clk 0:00:12]} 41. Be3 {[%clk 0:00:06]}  Nc3 {[%clk 0:00:13]} 42. Bd2 {[%clk 0:00:05]}  Ne4 {[%clk 0:00:11]} 43. Bc1 {[%clk 0:00:02]}  Ra8 {[%clk 0:00:10]} 44. Kf3 {[%clk 0:00:02]}  Nc5 {[%clk 0:00:10]} 45. Bb2 {[%clk 0:00:02]}  Bxb2 {[%clk 0:00:09]} 46. Rxb2 {[%clk 0:00:03]}  Rb8 {[%clk 0:00:09]} 47. Nc6 {[%clk 0:00:02]}  Rb7 {[%clk 0:00:10]} 48. b4 {[%clk 0:00:02]}  Nd3 {[%clk 0:00:10]} 49. Rb3 {[%clk 0:00:02]}  Nc1 {[%clk 0:00:09]} 50. Rb2 {[%clk 0:00:01]}  Nd3 {[%clk 0:00:09]} 51. Rb3 {[%clk 0:00:01]}  Ne1+ {[%clk 0:00:07]} 52. Ke2 {[%clk 0:00:01]}  Nc2 {[%clk 0:00:07]} 53. Kd3 {[%clk 0:00:02]}  Ne1+ {[%clk 0:00:07]} 54. Kd2 {[%clk 0:00:02]}  Ng2 {[%clk 0:00:05]} 55. Ke2 {[%clk 0:00:02]}  Rc7 {[%clk 0:00:03]} 56. b5 {[%clk 0:00:02]}  d5 {[%clk 0:00:02]} 57. Kf2 {[%clk 0:00:02]}  d4 {[%clk 0:00:03]} 58. Kxg2 {[%clk 0:00:02]}  d3 {[%clk 0:00:03]} 59. Rxd3 {[%clk 0:00:03]}  Rb7 {[%clk 0:00:04]} 60. Rb3 {[%clk 0:00:03]}  e6 {[%clk 0:00:03]} 61. a4 {[%clk 0:00:03]}  Kf8 {[%clk 0:00:04]} 62. a5 {[%clk 0:00:03]}  Ke8 {[%clk 0:00:04]} 63. a6 {[%clk 0:00:04]}  Rb8 {[%clk 0:00:04]} 64. Nxb8 {[%clk 0:00:03]} 1-0


[Site "https://www.chess.com"]